bitfinex/quotes_BTCUSD_20240719
["timestamp","ask_amount","ask_price","bid_price","bid_amount"]
[1721412963120,0.0804,66834.0,66814.0,0.000924]
[1721412963121,0.0804,66831.0,66816.0,0.46304871]
[1721412963322,0.0804,66831.0,66797.0,0.550959]
[1721412963323,0.0804,66826.0,66798.0,0.07895162]
[1721412963561,0.0603,66820.0,66817.0,0.00314389]
[1721412963754,0.2003126,66819.0,66799.0,0.00321778]
[1721412963977,0.17771165,66818.0,66797.0,0.01451484]
[1721412964192,0.30803174,66817.0,66800.0,0.00268969]
[1721412964394,0.30803174,66817.0,66797.0,0.01451484]
[1721412964395,0.07717479,66811.0,66797.0,0.01451484]
[1721412964603,0.0782,66809.0,66797.0,0.01451484]
[1721412964816,0.0782,66809.0,66797.0,0.01414032]
[1721412964817,0.17744065,66808.0,66797.0,0.01414032]
[1721412965147,0.149687,66806.0,66797.0,0.01414032]
[1721412965230,0.0601,66805.0,66797.0,0.01414032]
[1721412965434,0.41138281,66804.0,66797.0,0.01414032]
[1721412965601,0.20336493,66803.0,66800.0,0.001]
[1721412965761,0.14326491,66802.0,66800.0,0.001]
[1721412965957,0.17744065,66801.0,66800.0,0.001]
[1721412966166,0.30044065,66801.0,66800.0,0.001]
[1721412966673,0.29764665,66801.0,66800.0,0.001]
[1721412967110,0.29764665,66801.0,66797.0,0.01414032]
[1721412967305,0.14612198,66800.0,66797.0,0.01414032]
[1721412967511,0.47210972,66799.0,66797.0,0.01414032]
[1721412967713,0.0461234,66798.0,66797.0,0.0147658]
[1721412967922,0.30050514,66798.0,66797.0,0.0147658]
[1721412968505,0.30050514,66798.0,66797.0,0.0137658]
[1721412968843,0.38020514,66798.0,66797.0,0.0137658]
[1721412969484,0.39420514,66798.0,66797.0,0.0137658]
[1721412969894,0.59391014,66798.0,66797.0,0.0137658]
[1721412970318,0.59376758,66798.0,66797.0,0.0137658]
[1721412970509,0.60776758,66798.0,66797.0,0.0147658]
[1721412970706,0.60776758,66798.0,66797.0,0.01439128]
[1721412970962,0.55776758,66798.0,66797.0,0.01439128]
[1721412971101,0.55776758,66798.0,66797.0,0.01339128]
[1721412971102,0.54376758,66798.0,66797.0,0.01339128]
[1721412971307,0.54097358,66798.0,66797.0,0.01439128]
[1721412971673,1.58356683,66798.0,66797.0,0.00692038]
[1721412971785,1.63157283,66798.0,66797.0,0.00692038]
[1721412971989,1.64557283,66798.0,66797.0,0.00692038]
[1721412972624,1.56709358,66798.0,66797.0,0.00692038]
[1721412972834,1.21768358,66798.0,66797.0,0.00692038]
[1721412973040,0.48406858,66798.0,66797.0,0.00692038]
[1721412973454,0.46388174,66798.0,66797.0,0.00692038]
[1721412973662,0.46388174,66798.0,66797.0,0.00554586]
[1721412973663,0.28238174,66798.0,66797.0,0.00554586]
[1721412973883,0.28238174,66798.0,66797.0,0.00654586]
[1721412974085,0.29638174,66798.0,66797.0,0.00654586]
[1721412974355,0.29899149,66798.0,66797.0,0.00654586]
[1721412974560,0.04460975,66798.0,66797.0,0.00654586]
[1721412974773,0.042,66798.0,66797.0,0.00654586]
[1721412974983,0.042,66798.0,66797.0,0.14694586]
[1721412975416,0.00260933,66809.0,66797.0,0.15608886]
[1721412975622,0.002794,66817.0,66797.0,0.15608886]
[1721412975623,0.15717574,66817.0,66802.0,0.07717479]
[1721412975828,0.15717574,66817.0,66797.0,0.15708886]
[1721412975829,0.014,66798.0,66797.0,0.15708886]
[1721412976401,0.016,66798.0,66797.0,0.15708886]
[1721412976600,0.00260917,66814.0,66797.0,0.15708886]
[1721412976831,0.002794,66813.0,66797.0,0.15671434]
[1721412977000,0.002794,66813.0,66797.0,0.15571434]
[1721412977223,0.01597849,66812.0,66797.0,0.15571434]
[1721412977387,0.002794,66811.0,66797.0,0.15571434]
[1721412977594,0.15699091,66814.0,66797.0,0.15571434]
[1721412977595,0.002794,66813.0,66797.0,0.15571434]
[1721412977796,0.025794,66813.0,66797.0,0.15571434]
[1721412977997,0.001,66798.0,66797.0,0.16071434]
[1721412978205,0.001,66798.0,66797.0,0.02031434]
[1721412978410,0.102794,66806.0,66797.0,0.01631434]
[1721412978648,0.17738174,66805.0,66797.0,0.00517134]
[1721412978870,0.102794,66804.0,66797.0,0.00617134]
[1721412979078,0.149701,66800.0,66797.0,0.00617134]
[1721412979295,0.30943379,66803.0,66797.0,0.00617134]
[1721412979296,0.15717574,66799.0,66797.0,0.00617134]
[1721412979606,0.12384,66798.0,66797.0,0.00717134]
[1721412979807,0.27822174,66798.0,66797.0,0.00617134]
[1721412980004,0.27817952,66798.0,66797.0,0.00617134]
[1721412980240,0.27817952,66798.0,66797.0,0.00517134]
[1721412980644,0.27817952,66798.0,66797.0,0.00479682]
[1721412981262,0.12379778,66798.0,66797.0,0.00479682]
[1721412981461,0.01484,66798.0,66797.0,0.00479682]
[1721412981663,0.01484,66798.0,66797.0,0.01493982]
[1721412982340,0.02884,66798.0,66797.0,0.01493982]
[1721412982753,0.01484,66798.0,66797.0,0.01493982]
[1721412982946,0.02784,66798.0,66797.0,0.01493982]
[1721412983631,0.02784,66798.0,66797.0,0.0145653]
[1721412984268,0.01384,66798.0,66797.0,0.0145653]
[1721412984710,0.02284,66798.0,66797.0,0.0145653]
[1721412984950,0.00984,66798.0,66797.0,0.0145653]
[1721412985493,0.00084,66798.0,66797.0,0.0145653]
[1721412986111,0.00284,66798.0,66797.0,0.0145653]
[1721412986553,0.00484,66798.0,66797.0,0.0145653]
[1721412986785,0.00284,66798.0,66797.0,0.01419078]
[1721412988066,0.00484,66798.0,66797.0,0.01419078]
[1721412988660,0.00084,66798.0,66797.0,0.01419078]
[1721412989387,0.00284,66798.0,66797.0,0.01419078]
[1721412989732,0.00284,66798.0,66797.0,0.01381626]
[1721412990448,0.04580213,66798.0,66797.0,0.00367326]
[1721412991070,0.19818387,66798.0,66797.0,0.00367326]
[1721412991287,0.20018387,66798.0,66797.0,0.00367326]
[1721412991506,0.30218387,66798.0,66797.0,0.00367326]
[1721412991923,0.30018387,66798.0,66797.0,0.00367326]
[1721412992379,0.28622174,66798.0,66797.0,0.00367326]
[1721412992611,0.30618754,66798.0,66797.0,0.00367326]
[1721412992839,0.30618754,66798.0,66797.0,0.00329874]
[1721412993041,0.30621067,66798.0,66797.0,0.00329874]
[1721412994349,0.35079174,66798.0,66797.0,0.00329874]
[1721412994579,0.58730545,66798.0,66797.0,0.00329874]
[1721412994798,0.58730545,66798.0,66775.0,0.1475]
[1721412994799,0.05,66794.0,66775.0,0.1475]
[1721412995014,0.05,66791.0,66775.0,0.0827]
[1721412995224,0.05,66791.0,66776.0,0.01032343]
[1721412995225,0.21117938,66790.0,66776.0,0.01032343]
[1721412995504,0.17979764,66789.0,66775.0,0.0827]
[1721412995721,0.21110828,66788.0,66775.0,0.08232548]
[1721412995927,0.0818,66786.0,66771.0,0.0648]
[1721412996138,0.17712984,66785.0,66771.0,0.0648]
[1721412996324,0.1199541,66784.0,66771.0,0.0648]
[1721412996568,0.002794,66782.0,66771.0,0.0648]
[1721412996793,0.0655,66780.0,66766.0,0.0612]
[1721412996996,0.17712984,66779.0,66766.0,0.0612]
[1721412997195,0.1429541,66778.0,66767.0,0.0104008]
[1721412997408,0.17712984,66777.0,66766.0,0.0612]
[1721412997623,0.1429541,66776.0,66766.0,0.0612]
[1721412997834,0.17712984,66775.0,66766.0,0.0612]
[1721412998039,0.123,66774.0,66766.0,0.0612]
[1721412998455,0.0771,66773.0,66758.0,0.009196]
[1721412998670,0.023,66772.0,66761.0,0.07717479]
[1721412998933,0.023,66772.0,66759.0,0.1243813]
[1721412998934,0.07717479,66762.0,66759.0,0.01046957]
[1721412999123,0.07717479,66769.0,66759.0,0.01046957]
[1721412999124,0.0199902,66761.0,66759.0,0.01046957]
[1721412999327,0.0199902,66760.0,66759.0,0.00370586]
[1721412999510,0.0199902,66760.0,66758.0,0.009196]
[1721412999511,0.0429902,66760.0,66758.0,0.009196]
[1721412999715,0.0199902,66759.0,66758.0,0.009196]
[1721412999875,0.0429902,66759.0,66758.0,0.009196]
[1721413001661,0.034,66759.0,66758.0,0.009196]
[1721413001869,0.04314835,66759.0,66758.0,0.00882148]
[1721413002283,0.026,66759.0,66758.0,0.00882148]
[1721413002757,0.04,66759.0,66758.0,0.01929965]
[1721413003032,0.18038174,66759.0,66758.0,0.01929965]
[1721413003281,0.28938174,66759.0,66758.0,0.01929965]
[1721413003509,0.27738174,66759.0,66758.0,0.00882148]
[1721413003920,0.28838174,66759.0,66758.0,0.00882148]
[1721413004324,0.125,66759.0,66758.0,0.00882148]
[1721413004523,0.1,66759.0,66758.0,0.00882148]
[1721413004651,0.1,66759.0,66758.0,0.00844696]
[1721413005028,0.111,66759.0,66758.0,0.00844696]
[1721413005176,0.123,66759.0,66758.0,0.00844696]
[1721413005380,0.023,66759.0,66758.0,0.00844696]
[1721413005580,0.035,66759.0,66758.0,0.00844696]
[1721413005756,0.035,66759.0,66758.0,0.01892513]
[1721413005757,0.012,66759.0,66758.0,0.01892513]
[1721413006165,0.023,66759.0,66758.0,0.01892513]
[1721413006572,0.011,66759.0,66758.0,0.09632513]
[1721413006949,0.017,66759.0,66758.0,0.09732513]
[1721413007449,0.00969588,66761.0,66758.0,0.09632513]
[1721413007655,0.015,66759.0,66758.0,0.09795061]
[1721413008100,0.015,66759.0,66758.0,0.15715061]
[1721413008275,0.011,66759.0,66758.0,0.15715061]
[1721413008474,0.011,66759.0,66758.0,0.20146641]
[1721413008677,0.1,66773.0,66758.0,0.5547833]
[1721413008678,0.002794,66772.0,66758.0,0.5547833]
[1721413008849,0.002794,66772.0,66765.0,0.07717479]
[1721413009057,0.002794,66772.0,66766.0,0.0067323]
[1721413010320,0.15438174,66771.0,66766.0,0.0067323]
[1721413010577,0.123,66770.0,66766.0,0.0067323]
[1721413010776,0.15717574,66769.0,66758.0,0.14567244]
[1721413010998,0.15438174,66769.0,66766.0,0.001]
[1721413011231,0.15438174,66769.0,66766.0,0.002]
[1721413011232,0.002794,66768.0,66766.0,0.002]
[1721413011454,0.002794,66768.0,66758.0,0.14567244]
[1721413011455,0.15438174,66767.0,66758.0,0.14567244]
[1721413011689,0.023,66766.0,66759.0,0.00667008]
[1721413011918,0.15717574,66765.0,66759.0,0.01045405]
[1721413014181,0.15717574,66765.0,66759.0,0.01245405]
[1721413015046,0.15817574,66765.0,66759.0,0.01245405]
[1721413015422,0.18289731,66765.0,66759.0,0.01245405]
[1721413015644,0.002794,66763.0,66759.0,0.01245405]
[1721413015803,0.17448567,66762.0,66759.0,0.002]
[1721413016067,0.025794,66761.0,66760.0,0.01044546]
[1721413016298,0.025794,66761.0,66759.0,0.002]
[1721413016299,0.19748576,66761.0,66759.0,0.002]
[1721413016501,0.15717574,66760.0,66758.0,0.00807244]
[1721413016616,0.123,66759.0,66758.0,0.00807244]
[1721413016816,0.27738174,66759.0,66758.0,0.00807244]
[1721413017074,0.27738174,66759.0,66758.0,0.01853509]
[1721413017702,0.1,66759.0,66758.0,0.01853509]
[1721413017837,0.003,66762.0,66758.0,0.01853509]
[1721413018060,0.003,66762.0,66761.0,0.07717479]
[1721413019099,0.00958904,66765.0,66761.0,0.07717479]
[1721413019300,0.17451802,66764.0,66761.0,0.0838359]
[1721413019501,0.17451802,66764.0,66761.0,0.00666111]
[1721413019502,0.12293028,66763.0,66761.0,0.00666111]
[1721413019707,0.19751802,66762.0,66761.0,0.00666111]
[1721413019906,0.30051802,66762.0,66758.0,0.00807244]
[1721413020149,0.102794,66761.0,66758.0,0.00807244]
[1721413020363,0.17738174,66760.0,66758.0,0.00807244]
[1721413020611,0.1,66759.0,66758.0,0.00807244]
[1721413020813,0.27738174,66759.0,66758.0,0.00807244]
[1721413022209,0.27738174,66759.0,66758.0,0.00907244]
[1721413022450,0.29745203,66759.0,66758.0,0.00907244]
[1721413022693,0.29745203,66759.0,66758.0,0.01107244]
[1721413023348,0.29745536,66759.0,66758.0,0.01107244]
[1721413023970,0.12007362,66759.0,66758.0,0.07117244]
[1721413024181,0.02007362,66759.0,66758.0,0.07117244]
[1721413024395,0.02007362,66759.0,66758.0,0.07784701]
[1721413024803,0.02007362,66763.0,66758.0,0.07784701]
[1721413025003,0.02007362,66762.0,66758.0,0.07784701]
[1721413025208,0.02007362,66761.0,66758.0,0.07784701]
[1721413025415,0.006,66764.0,66758.0,0.07784701]
[1721413025416,0.17445536,66760.0,66758.0,0.01737249]
[1721413025623,0.12007362,66759.0,66758.0,0.01537249]
[1721413025835,0.27445536,66759.0,66758.0,0.01537249]
[1721413026036,0.27445536,66759.0,66758.0,0.01437249]
[1721413026214,0.29745536,66759.0,66758.0,0.01437249]
[1721413026416,0.29746701,66759.0,66758.0,0.01437249]
[1721413026780,0.29746701,66759.0,66758.0,0.01637249]
[1721413026984,0.12008527,66759.0,66758.0,0.01637249]
[1721413027190,0.02008527,66759.0,66758.0,0.01637249]
[1721413027383,0.02008527,66761.0,66758.0,0.01637249]
[1721413027578,0.08906751,66757.0,66754.0,0.000924]
[1721413027779,0.02008527,66756.0,66754.0,0.000924]
[1721413027982,0.12008527,66756.0,66754.0,0.000924]
[1721413028178,0.02008527,66755.0,66754.0,0.000924]
[1721413029478,0.02008527,66755.0,66754.0,0.004924]
[1721413030098,0.02014067,66755.0,66754.0,0.004924]
[1721413030286,0.02014067,66755.0,66754.0,0.011924]
[1721413030287,0.02114067,66755.0,66754.0,0.011924]
[1721413030950,0.02114067,66755.0,66754.0,0.016924]
[1721413031931,0.02080077,66755.0,66754.0,0.016924]
[1721413032771,0.001,66755.0,66754.0,0.016924]
[1721413034752,0.001,66755.0,66754.0,0.02128474]
[1721413039513,0.001,66755.0,66754.0,0.016924]
[1721413040313,0.001,66755.0,66754.0,0.02128474]
[1721413041974,0.02057657,66755.0,66754.0,0.02128474]
[1721413042571,0.02054471,66755.0,66754.0,0.02128474]
[1721413042927,0.001,66755.0,66754.0,0.02128474]
[1721413043280,0.02054697,66755.0,66754.0,0.02128474]
[1721413044862,0.02138697,66755.0,66754.0,0.02128474]
[1721413045707,0.02137596,66755.0,66754.0,0.02128474]
[1721413048955,0.02133984,66755.0,66754.0,0.02128474]
[1721413052756,0.02131706,66755.0,66754.0,0.02128474]
[1721413054908,0.02113679,66755.0,66754.0,0.02128474]
[1721413055136,0.02111836,66755.0,66754.0,0.02128474]
[1721413055624,0.02112031,66755.0,66754.0,0.02128474]
[1721413058061,0.02112031,66755.0,66754.0,0.61379068]
[1721413058442,0.00165973,66755.0,66754.0,1.58826936]
[1721413058645,0.00165973,66755.0,66754.0,1.06478348]
[1721413058848,0.00165973,66755.0,66754.0,1.91014684]
[1721413059046,0.00084,66755.0,66754.0,1.90314684]
[1721413059266,0.00084,66755.0,66754.0,1.8049323]
[1721413059480,0.00184,66755.0,66754.0,1.60151597]
[1721413059700,0.00184,66755.0,66754.0,1.36294356]
[1721413059941,0.00084,66755.0,66754.0,0.31437514]
[1721413060143,0.00184,66755.0,66754.0,0.1426842]
[1721413060343,0.00184,66755.0,66754.0,0.01828474]
[1721413060470,0.02139341,66755.0,66754.0,0.01828474]
[1721413061296,0.02139341,66755.0,66754.0,0.03228474]
[1721413061474,0.02039341,66755.0,66754.0,0.00528474]
[1721413061674,0.02039341,66755.0,66754.0,0.01328474]
[1721413061917,0.02039341,66755.0,66754.0,0.01928474]
[1721413062117,0.02034956,66755.0,66754.0,0.01928474]
[1721413062317,0.00084,66755.0,66754.0,0.01128474]
[1721413062568,0.00084,66755.0,66754.0,0.02128474]
[1721413062775,0.02035055,66755.0,66754.0,0.01128474]
[1721413063193,0.02035055,66755.0,66754.0,0.01228474]
[1721413063372,0.02035055,66755.0,66754.0,0.02028474]
[1721413063571,0.02035055,66755.0,66754.0,0.46969474]
[1721413063808,0.02035055,66755.0,66754.0,1.03379814]
[1721413063809,0.00084,66755.0,66754.0,1.03379814]
[1721413064008,0.00084,66755.0,66754.0,1.53239375]
[1721413064208,0.00084,66755.0,66754.0,1.48778688]
[1721413064432,0.00084,66755.0,66754.0,1.48078688]
[1721413064632,0.00084,66755.0,66754.0,1.47978688]
[1721413065051,0.00184,66755.0,66754.0,1.48178241]
[1721413065267,0.00184,66755.0,66754.0,0.42857967]
[1721413065476,0.00184,66755.0,66754.0,1.07237897]
[1721413065899,0.00084,66755.0,66754.0,1.06337897]
[1721413066108,0.00084,66755.0,66754.0,1.36998597]
[1721413066322,0.00184,66755.0,66754.0,1.33240067]
[1721413066548,0.00184,66755.0,66754.0,2.1654797]
[1721413066760,0.00184,66755.0,66754.0,2.56451345]
[1721413066983,0.00184,66755.0,66754.0,2.45303723]
[1721413067629,0.00184,66755.0,66754.0,2.46703723]
[1721413067838,0.00184,66755.0,66754.0,1.53332323]
[1721413068041,0.00184,66755.0,66754.0,1.61674321]
[1721413068042,0.00084,66755.0,66754.0,1.61674321]
[1721413068242,0.00084,66755.0,66754.0,1.04878348]
[1721413068463,0.00084,66755.0,66754.0,1.90805367]
[1721413069400,0.00084,66755.0,66754.0,1.81891175]
[1721413069601,0.00084,66755.0,66754.0,1.53330475]
[1721413069862,0.00084,66755.0,66754.0,1.51930475]
[1721413070089,0.00084,66755.0,66754.0,1.86891175]
[1721413070417,0.00084,66755.0,66754.0,1.51930475]
[1721413070963,0.00084,66755.0,66754.0,1.85491175]
[1721413071119,0.00084,66755.0,66754.0,1.86891175]
[1721413071362,0.00084,66755.0,66754.0,1.58330659]
[1721413071567,0.00084,66755.0,66754.0,1.51930659]
[1721413071763,0.00084,66755.0,66754.0,1.23716693]
[1721413072028,0.00084,66755.0,66754.0,1.5833066]
[1721413072433,0.00084,66755.0,66754.0,1.60016263]
[1721413072850,0.00084,66755.0,66754.0,1.61416263]
[1721413073227,0.00084,66755.0,66754.0,1.5473066]
[1721413073429,0.00084,66755.0,66754.0,1.6141847]
[1721413073844,0.00084,66755.0,66754.0,1.6641847]
[1721413074168,0.00084,66755.0,66754.0,1.6361847]
[1721413074341,0.00084,66755.0,66754.0,1.6501847]
[1721413074585,0.00084,66755.0,66754.0,1.93579452]
[1721413074816,0.00084,66755.0,66754.0,1.94979452]
[1721413075364,0.00084,66755.0,66754.0,1.65018752]
[1721413075771,0.00084,66755.0,66754.0,1.94979452]
[1721413076389,0.00084,66755.0,66754.0,1.61765442]
[1721413077015,0.00084,66755.0,66754.0,1.94979374]
[1721413077828,0.00084,66755.0,66754.0,1.89976053]
[1721413078010,0.00084,66755.0,66754.0,1.56762211]
[1721413078214,0.00084,66755.0,66754.0,1.26801511]
[1721413078720,0.00084,66755.0,66754.0,1.60015311]
[1721413078978,0.00084,66755.0,66754.0,1.26801511]
[1721413079249,0.00084,66755.0,66754.0,1.12791511]
[1721413079427,0.00084,66755.0,66754.0,0.15766819]
[1721413079614,0.00084,66755.0,66754.0,0.03328474]
[1721413080279,0.00084,66755.0,66754.0,0.01928474]
[1721413080486,0.00084,66755.0,66754.0,0.00528474]
[1721413080686,0.00084,66755.0,66754.0,0.01028474]
[1721413080914,0.00084,66755.0,66754.0,0.01528474]
[1721413081086,0.06584,66755.0,66754.0,0.005924]
[1721413081288,0.06584,66755.0,66754.0,0.000924]
[1721413081518,0.06584,66755.0,66754.0,0.010924]
[1721413081919,0.06584,66755.0,66754.0,0.005924]
[1721413082348,0.06584,66755.0,66754.0,0.010924]
[1721413082594,0.08523507,66755.0,66754.0,0.010924]
[1721413083316,0.08523507,66755.0,66754.0,0.005924]
[1721413083519,0.08523507,66755.0,66754.0,0.000924]
[1721413083520,0.08521949,66755.0,66754.0,0.000924]
[1721413083728,0.08521949,66755.0,66754.0,0.005924]
[1721413083933,0.08521949,66755.0,66754.0,0.010924]
[1721413083934,0.08521937,66755.0,66754.0,0.010924]
[1721413086911,0.08504115,66755.0,66754.0,0.010924]
[1721413088570,0.02004115,66755.0,66754.0,0.010924]
[1721413088993,0.02004115,66755.0,66754.0,0.02030862]
[1721413088994,0.00084,66755.0,66754.0,0.02030862]
[1721413090122,0.00084,66755.0,66754.0,0.09670862]
[1721413090323,0.00084,66755.0,66754.0,0.0997043]
[1721413091832,0.00084,66755.0,66754.0,0.70349604]
[1721413092061,0.00084,66755.0,66754.0,0.89148808]
[1721413093180,0.00084,66755.0,66754.0,0.75910036]
[1721413093467,0.00084,66755.0,66754.0,0.88849416]
[1721413093666,0.00084,66755.0,66754.0,0.88349492]
[1721413094334,0.00084,66755.0,66754.0,0.89649492]
[1721413094505,0.00084,66755.0,66754.0,0.88349492]
[1721413095017,0.00084,66755.0,66754.0,0.89149492]
[1721413095223,0.00084,66755.0,66754.0,0.60488792]
[1721413095514,0.00084,66755.0,66754.0,0.45508492]
[1721413095652,0.00084,66755.0,66754.0,0.31769036]
[1721413095851,0.00084,66755.0,66754.0,0.30469036]
[1721413096062,0.00084,66755.0,66754.0,0.09970862]
[1721413096266,0.00084,66755.0,66754.0,0.02330862]
[1721413096460,0.14244,66755.0,66754.0,0.02330862]
[1721413096877,0.08611474,66755.0,66754.0,0.013924]
[1721413097134,0.08611474,66755.0,66754.0,0.026924]
[1721413097626,0.08611474,66755.0,66754.0,0.013924]
[1721413097799,0.08611474,66755.0,66754.0,0.026924]
[1721413098285,0.01991474,66755.0,66754.0,0.000924]
[1721413098433,0.01991474,66755.0,66754.0,0.009924]
[1721413106090,0.02001272,66755.0,66754.0,0.009924]
[1721413106561,0.00084,66755.0,66754.0,0.009924]
[1721413106929,0.02000505,66755.0,66754.0,0.009924]
[1721413109308,0.01996919,66755.0,66754.0,0.009924]
[1721413110529,0.15866919,66755.0,66754.0,0.009924]
[1721413112131,0.01996919,66755.0,66754.0,0.009924]
[1721413112313,0.00084,66755.0,66754.0,0.009924]
[1721413112628,0.01986915,66755.0,66754.0,0.009924]
[1721413115853,0.01998681,66755.0,66754.0,0.009924]
[1721413117280,0.01998681,66755.0,66754.0,0.09724107]
[1721413119002,0.02003576,66755.0,66754.0,0.09724107]
[1721413122155,0.02000617,66755.0,66754.0,0.09724107]
[1721413125528,0.02004021,66755.0,66754.0,0.09724107]
[1721413126032,0.02004021,66755.0,66754.0,0.19124107]
[1721413126511,0.02004021,66755.0,66754.0,0.25774107]
[1721413126715,0.02004021,66755.0,66754.0,0.38214451]
[1721413127241,0.00084,66755.0,66754.0,0.83155451]
[1721413127441,0.00084,66755.0,66754.0,1.21186151]
[1721413128063,0.00084,66755.0,66754.0,1.11286151]
[1721413128435,0.00084,66755.0,66754.0,1.11786151]
[1721413128648,0.00084,66755.0,66754.0,1.14783981]
[1721413128820,0.00084,66755.0,66754.0,1.57184337]
[1721413129025,0.00084,66755.0,66754.0,1.95399839]
[1721413129225,0.00084,66755.0,66754.0,2.30359251]
[1721413129449,0.00084,66755.0,66754.0,2.41122623]
[1721413129706,0.00084,66755.0,66754.0,2.40622623]
[1721413129910,0.00084,66755.0,66754.0,2.41022623]
[1721413130112,0.00084,66755.0,66754.0,2.41922623]
[1721413130524,0.00084,66755.0,66754.0,2.42022623]
[1721413130872,0.00084,66755.0,66754.0,2.43422623]
[1721413131070,0.00084,66755.0,66754.0,2.32259251]
[1721413131841,0.00084,66755.0,66754.0,2.32258427]
[1721413132484,0.00084,66755.0,66754.0,2.41173513]
[1721413134502,0.08906751,66757.0,66756.0,1.148593]
[1721413134700,0.00084,66770.0,66769.0,0.44931]
[1721413134906,0.00084,66770.0,66769.0,1.65214653]
[1721413135126,0.00084,66770.0,66769.0,1.77650985]
[1721413136220,0.00084,66770.0,66769.0,1.79050985]
[1721413136450,0.00084,66770.0,66769.0,1.65214653]
[1721413136640,0.00084,66770.0,66765.0,0.299555]
[1721413136937,0.00084,66770.0,66769.0,0.014]
[1721413137141,0.00084,66770.0,66769.0,0.028]
[1721413137497,0.00084,66770.0,66769.0,0.014]
[1721413137701,0.00084,66770.0,66767.0,0.149774]
[1721413137897,0.00084,66770.0,66768.0,0.149772]
[1721413138098,0.00084,66770.0,66769.0,0.14977]
[1721413138502,0.00084,66770.0,66769.0,0.45426657]
[1721413139794,0.00084,66770.0,66769.0,0.45925882]
[1721413139931,0.00084,66770.0,66769.0,0.02094882]
[1721413140133,0.00084,66770.0,66769.0,0.03094882]
[1721413140349,0.14164,66770.0,66769.0,0.03094882]
[1721413140554,0.14164,66770.0,66769.0,0.01994882]
[1721413140799,0.14164,66770.0,66769.0,0.014]
[1721413141050,0.14164,66770.0,66769.0,0.028]
[1721413141051,0.26085559,66770.0,66769.0,0.028]
[1721413141297,0.26085559,66770.0,66769.0,0.014]
[1721413141512,0.26085201,66770.0,66769.0,0.014]
[1721413141730,0.18015201,66770.0,66769.0,0.014]
[1721413141888,0.10084,66770.0,66769.0,0.014]
[1721413142088,0.00084,66770.0,66769.0,0.01895657]
[1721413142265,0.00084,66770.0,66769.0,0.00994882]
[1721413142713,0.00084,66770.0,66769.0,0.02094882]
[1721413143019,0.00084,66770.0,66769.0,0.16971882]
[1721413143225,0.00084,66770.0,66769.0,0.15971882]
[1721413143427,0.00084,66770.0,66769.0,0.47825882]
[1721413143633,0.00084,66770.0,66769.0,0.46925882]
[1721413143776,0.00084,66770.0,66769.0,0.45925882]
[1721413143984,0.00084,66770.0,66769.0,0.46925882]
[1721413144186,0.00084,66770.0,66769.0,0.47025882]
[1721413144568,0.00084,66770.0,66769.0,0.47925882]
[1721413145197,0.00084,66770.0,66769.0,0.17971882]
[1721413145592,0.00084,66770.0,66769.0,0.16871882]
[1721413145792,0.00084,66770.0,66769.0,0.16971882]
[1721413146194,0.00084,66770.0,66769.0,0.02994882]
[1721413146425,0.00084,66770.0,66769.0,0.01994882]
[1721413146616,0.00084,66770.0,66769.0,0.03094882]
[1721413148230,0.14214,66770.0,66769.0,0.03094882]
[1721413148434,0.14214,66770.0,66769.0,0.021]
[1721413149069,0.26131473,66770.0,66769.0,0.021]
[1721413150096,0.26131473,66770.0,66769.0,0.01]
[1721413150355,0.41569647,66770.0,66769.0,0.012]
[1721413150589,0.4386742,66770.0,66769.0,0.002]
[1721413150790,0.4386742,66770.0,66769.0,0.003]
[1721413150982,0.43872807,66770.0,66769.0,0.003]
[1721413151515,0.43872807,66770.0,66769.0,0.004]
[1721413151744,0.43872807,66770.0,66769.0,0.002]
[1721413151971,0.002794,66768.0,66754.0,0.000924]
[1721413152177,0.17358807,66767.0,66754.0,0.000924]
[1721413152391,0.12200033,66766.0,66755.0,0.01012938]
[1721413152563,0.01920633,66765.0,66755.0,0.01012938]
[1721413152871,0.143494,66763.0,66754.0,0.000924]
[1721413152986,0.43728807,66762.0,66754.0,0.000924]
[1721413153183,0.002794,66759.0,66756.0,0.01011648]
[1721413153361,0.1384,66757.0,66754.0,0.000924]
[1721413153591,0.27738174,66756.0,66754.0,0.000924]
[1721413153774,0.01922154,66755.0,66754.0,0.000924]
[1721413153974,0.19660328,66755.0,66754.0,0.000924]
[1721413154201,0.29660328,66755.0,66754.0,0.000924]
[1721413154461,0.29660328,66755.0,66754.0,0.001924]
[1721413154666,0.29660328,66755.0,66754.0,0.000924]
[1721413155019,0.29860328,66755.0,66754.0,0.000924]
[1721413156320,0.29860328,66755.0,66754.0,0.001924]
[1721413156842,0.27938174,66755.0,66754.0,0.001924]
[1721413157031,0.29870385,66755.0,66754.0,0.000924]
[1721413158450,0.43980385,66755.0,66754.0,0.000924]
[1721413160197,0.43965801,66755.0,66754.0,0.000924]
[1721413160849,0.64915896,66755.0,66751.0,0.000924]
[1721413161049,0.149806,66753.0,66751.0,0.000924]
[1721413161180,0.34935201,66754.0,66751.0,0.000924]
[1721413161181,0.43745801,66752.0,66751.0,0.000924]
[1721413161386,0.36445801,66752.0,66751.0,0.000924]
[1721413161598,0.36445801,66752.0,66735.0,0.484496]
[1721413161599,0.05,66750.0,66735.0,0.484496]
[1721413161798,0.1419,66748.0,66735.0,0.009196]
[1721413162005,0.56527501,66748.0,66735.0,0.009196]
[1721413162239,0.43845801,66748.0,66735.0,0.009196]
[1721413163047,0.58827501,66748.0,66735.0,0.009196]
[1721413163249,0.58828115,66748.0,66735.0,0.009196]
[1721413163431,1.60652955,66748.0,66747.0,0.010196]
[1721413163632,1.47334915,66748.0,66747.0,0.010196]
[1721413163831,1.47334974,66748.0,66747.0,0.010196]
[1721413164027,1.52334974,66748.0,66747.0,0.010196]
[1721413164254,1.53034974,66748.0,66747.0,0.001196]
[1721413164463,1.53034974,66748.0,66735.0,0.009196]
[1721413164464,0.689132,66736.0,66735.0,0.009196]
[1721413164660,0.689132,66736.0,66729.0,0.009196]
[1721413164661,0.1396,66731.0,66730.0,0.009136]
[1721413165031,0.0622,66727.0,66721.0,0.46504871]
[1721413165232,0.20438174,66723.0,66721.0,0.002]
[1721413165409,0.181783,66722.0,66721.0,0.002]
[1721413165666,0.181783,66722.0,66711.0,0.002]
[1721413165667,0.05,66718.0,66711.0,0.002]
[1721413165873,0.0651,66716.0,66711.0,0.002]
[1721413166073,0.19656474,66715.0,66711.0,0.002]